bitfinex/quotes_BTCUSD_20241103
["timestamp","ask_amount","ask_price","bid_price","bid_amount"]
[1730611708737,0.87184678,68530.0,68529.0,0.0098957]
[1730611709076,0.71908774,68530.0,68529.0,0.0098957]
[1730611709276,1.28293499,68530.0,68529.0,0.0098957]
[1730611709503,1.06391379,68530.0,68529.0,0.0098957]
[1730611709706,1.02839378,68530.0,68529.0,0.0098957]
[1730611709904,0.86988792,68530.0,68529.0,0.0098957]
[1730611710135,0.86488792,68530.0,68529.0,0.0098957]
[1730611710463,0.86988792,68530.0,68529.0,0.0098957]
[1730611712420,0.86488792,68530.0,68529.0,0.0098957]
[1730611712627,0.97940718,68530.0,68529.0,0.0098957]
[1730611713498,1.13199138,68530.0,68529.0,0.0098957]
[1730611714145,1.13699219,68530.0,68529.0,0.0098957]
[1730611714586,1.13199219,68530.0,68529.0,0.0098957]
[1730611715429,0.97940799,68530.0,68529.0,0.0098957]
[1730611715914,0.98440799,68530.0,68529.0,0.0098957]
[1730611717207,0.98440832,68530.0,68529.0,0.0098957]
[1730611718502,1.13712321,68530.0,68529.0,0.0098957]
[1730611718718,1.26072321,68530.0,68529.0,0.0098957]
[1730611719162,1.10800832,68530.0,68529.0,0.0098957]
[1730611721196,1.10802387,68530.0,68529.0,0.0098957]
[1730611723454,1.37049212,68530.0,68529.0,0.0098957]
[1730611724361,1.33490124,68530.0,68529.0,0.0098957]
[1730611724572,1.26110188,68530.0,68529.0,0.0098957]
[1730611725699,1.34177011,68530.0,68529.0,0.0098957]
[1730611725932,1.33977011,68530.0,68529.0,0.0098957]
[1730611726392,1.32577011,68530.0,68529.0,0.0098957]
[1730611726839,1.31377011,68530.0,68529.0,0.0098957]
[1730611727074,1.24710188,68530.0,68529.0,0.0098957]
[1730611727288,1.26110188,68530.0,68529.0,0.0098957]
[1730611727518,1.32577011,68530.0,68529.0,0.0098957]
[1730611727992,1.29223676,68530.0,68529.0,0.0098957]
[1730611728223,1.32775344,68530.0,68529.0,0.0098957]
[1730611728429,1.31375344,68530.0,68529.0,0.0098957]
[1730611728652,1.32775344,68530.0,68529.0,0.0098957]
[1730611728871,1.32575344,68530.0,68529.0,0.0098957]
[1730611729156,1.40506177,68530.0,68529.0,0.0098957]
[1730611729591,1.41906177,68530.0,68529.0,0.0098957]
[1730611731111,1.34007349,68530.0,68529.0,0.0098957]
[1730611731325,1.22555423,68530.0,68529.0,0.0098957]
[1730611731768,1.19003755,68530.0,68529.0,0.0098957]
[1730611731980,1.21188867,68530.0,68529.0,0.0098957]
[1730611732187,1.22554565,68530.0,68529.0,0.0098957]
[1730611732393,1.37137139,68530.0,68529.0,0.0098957]
[1730611732598,1.38502722,68530.0,68529.0,0.0098957]
[1730611733056,1.37137026,68530.0,68529.0,0.0098957]
[1730611734539,1.15014452,68530.0,68529.0,0.0098957]
[1730611734767,1.10194452,68530.0,68529.0,0.0098957]
[1730611735381,1.02295624,68530.0,68529.0,0.0098957]
[1730611737220,1.07205624,68530.0,68529.0,0.0098957]
[1730611739048,1.03654927,68530.0,68529.0,0.0098957]
[1730611739252,1.02295462,68530.0,68529.0,0.0098957]
[1730611741509,0.98744927,68530.0,68529.0,0.0098957]
[1730611741768,1.32294795,68530.0,68529.0,0.0098957]
[1730611741939,1.13736765,68530.0,68529.0,0.0098957]
[1730611742211,1.23282298,68530.0,68529.0,0.0098957]
[1730611742391,1.37864872,68530.0,68529.0,0.0098957]
[1730611742613,1.37864829,68530.0,68529.0,0.0098957]
[1730611745471,1.34314405,68530.0,68529.0,0.0098957]
[1730611745711,1.37864867,68530.0,68529.0,0.0098957]
[1730611746901,1.35679967,68530.0,68529.0,0.0098957]
[1730611748285,1.27783063,68530.0,68529.0,0.0098957]
[1730611748491,1.35679967,68530.0,68529.0,0.0098957]
[1730611748714,1.27783063,68530.0,68529.0,0.0098957]
[1730611749332,1.27783133,68530.0,68529.0,0.0098957]
[1730611749563,1.13200559,68530.0,68529.0,0.0098957]
[1730611750712,0.97892436,68530.0,68529.0,0.0098957]
[1730611750975,1.15264505,68530.0,68529.0,0.0098957]
[1730611752864,1.13079294,68530.0,68529.0,0.0098957]
[1730611753277,1.13079572,68530.0,68529.0,0.0098957]
[1730611753548,1.25991662,68530.0,68529.0,0.0098957]
[1730611753953,1.28177282,68530.0,68529.0,0.0098957]
[1730611756991,1.24625752,68530.0,68529.0,0.0098957]
[1730611757218,1.26811732,68530.0,68529.0,0.0098957]
[1730611757671,1.2817797,68530.0,68529.0,0.0098957]
[1730611760277,1.28201827,68530.0,68529.0,0.0098957]
[1730611760706,1.15111827,68530.0,68529.0,0.0098957]
[1730611761562,1.02199737,68530.0,68529.0,0.0098957]
[1730611761762,1.02199608,68530.0,68529.0,0.0098957]
[1730611764688,1.02199834,68530.0,68529.0,0.0098957]
[1730611764903,1.02206429,68530.0,68529.0,0.0098957]
[1730611767348,1.02214769,68530.0,68529.0,0.0098957]
[1730611773609,0.86989119,68530.0,68529.0,0.0098957]
[1730611774277,0.86988771,68530.0,68529.0,0.0098957]
[1730611775849,0.84802945,68530.0,68529.0,0.0098957]
[1730611776060,0.83436804,68530.0,68529.0,0.0098957]
[1730611776268,0.91333708,68530.0,68529.0,0.0098957]
[1730611776481,0.97015806,68530.0,68529.0,0.0098957]
[1730611776696,0.92670803,68530.0,68529.0,0.0098957]
[1730611778194,0.92670676,68530.0,68529.0,0.0098957]
[1730611779457,0.86988578,68530.0,68529.0,0.0098957]
[1730611780118,0.86988376,68530.0,68529.0,0.0098957]
[1730611781852,0.86988193,68530.0,68529.0,0.0098957]
[1730611788148,0.85588193,68530.0,68529.0,0.0098957]
[1730611788355,0.84188193,68530.0,68529.0,0.0098957]
[1730611788558,0.85588193,68530.0,68529.0,0.0098957]
[1730611788759,0.86988193,68530.0,68529.0,0.0098957]
[1730611789215,0.83436804,68530.0,68529.0,0.0098957]
[1730611789419,0.84188324,68530.0,68529.0,0.0098957]
[1730611789821,0.86988324,68530.0,68529.0,0.0098957]
[1730611791944,1.13000031,68530.0,68529.0,0.0098957]
[1730611793948,1.13004442,68530.0,68529.0,0.0098957]
[1730611796522,1.09452922,68530.0,68529.0,0.0098957]
[1730611796759,1.13005601,68530.0,68529.0,0.0098957]
[1730611800483,1.13006784,68530.0,68529.0,0.0098957]
[1730611800690,1.13006803,68530.0,68529.0,0.0098957]
[1730611801971,0.86990685,68530.0,68529.0,0.0098957]
[1730611802179,1.130134,68530.0,68529.0,0.0098957]
[1730611803277,1.27595974,68530.0,68529.0,0.0098957]
[1730611803475,1.40192878,68530.0,68529.0,0.0098957]
[1730611803688,1.21368972,68530.0,68529.0,0.0098957]
[1730611806409,1.17815091,68530.0,68529.0,0.0098957]
[1730611806606,1.20033304,68530.0,68529.0,0.0098957]
[1730611807056,1.21400243,68530.0,68529.0,0.0098957]
[1730611810400,1.20033304,68530.0,68529.0,0.0098957]
[1730611810613,1.21400082,68530.0,68529.0,0.0098957]
[1730611811036,1.29296986,68530.0,68529.0,0.0098957]
[1730611811240,1.36916986,68530.0,68529.0,0.0098957]
[1730611811908,1.29020082,68530.0,68529.0,0.0098957]
[1730611812973,1.14437508,68530.0,68529.0,0.0098957]
[1730611813833,1.10883627,68530.0,68529.0,0.0098957]
[1730611814038,1.1307084,68530.0,68529.0,0.0098957]
[1730611814253,1.14437848,68530.0,68529.0,0.0098957]
[1730611815772,1.1448462,68530.0,68529.0,0.0098957]
[1730611815980,1.29067194,68530.0,68529.0,0.0098957]
[1730611816192,1.1448462,68530.0,68529.0,0.0098957]
[1730611816613,1.0686462,68530.0,68529.0,0.0098957]
[1730611817522,1.06866395,68530.0,68529.0,0.0098957]
[1730611821278,1.06866401,68530.0,68529.0,0.0098957]
[1730611821492,1.05498713,68530.0,68529.0,0.0098957]
[1730611821696,1.06866409,68530.0,68529.0,0.0098957]
[1730611823619,1.02166409,68530.0,68529.0,0.0098957]
[1730611824942,1.02121503,68530.0,68529.0,0.0098957]
[1730611828478,1.02122369,68530.0,68529.0,0.0098957]
[1730611832329,1.02122229,68530.0,68529.0,0.0098957]
[1730611832629,0.98565493,68530.0,68529.0,0.0098957]
[1730611832845,1.02122278,68530.0,68529.0,0.0098957]
[1730611834326,1.22835835,68530.0,68529.0,0.0098957]
[1730611834542,1.14938931,68530.0,68529.0,0.0098957]
[1730611834761,1.22835835,68530.0,68529.0,0.0098957]
[1730611836062,1.14938931,68530.0,68529.0,0.0098957]
[1730611836691,1.14938975,68530.0,68529.0,0.0098957]
[1730611836898,1.11382146,68530.0,68529.0,0.0098957]
[1730611838583,0.98565493,68530.0,68529.0,0.0098957]
[1730611838790,0.98599668,68530.0,68529.0,0.0098957]
[1730611839214,1.02156798,68530.0,68529.0,0.0098957]
[1730611841780,1.0215368,68530.0,68529.0,0.0098957]
[1730611842910,0.9859655,68530.0,68529.0,0.0098957]
[1730611848182,0.9856733,68530.0,68529.0,0.0098957]
[1730611849681,1.02123519,68530.0,68529.0,0.0098957]
[1730611850116,0.9856733,68530.0,68529.0,0.0098957]
[1730611850371,1.02123521,68530.0,68529.0,0.0098957]
[1730611850579,1.02123504,68530.0,68529.0,0.0098957]
[1730611850784,1.00755738,68530.0,68529.0,0.0098957]
[1730611850991,1.02123493,68530.0,68529.0,0.0098957]
[1730611857331,1.02123165,68530.0,68529.0,0.0098957]
[1730611857540,1.02123025,68530.0,68529.0,0.0098957]
[1730611858897,1.06873025,68530.0,68529.0,0.0098957]
[1730611861253,1.06872941,68530.0,68529.0,0.0098957]
[1730611861460,1.06871641,68530.0,68529.0,0.0098957]
[1730611861665,1.0331589,68530.0,68529.0,0.0098957]
[1730611861876,1.0687164,68530.0,68529.0,0.0098957]
[1730611866287,1.21454214,68530.0,68529.0,0.0098957]
[1730611866496,1.0687164,68530.0,68529.0,0.0098957]
[1730611866946,1.06872235,68530.0,68529.0,0.0098957]
[1730611870848,1.06858817,68530.0,68529.0,0.0098957]
[1730611875402,1.06861549,68530.0,68529.0,0.0098957]
[1730611877283,1.03305204,68530.0,68529.0,0.0098957]
[1730611877487,1.06860232,68530.0,68529.0,0.0098957]
[1730611877697,1.21442806,68530.0,68529.0,0.0098957]
[1730611878382,1.06860232,68530.0,68529.0,0.0098957]
[1730611881110,1.03305204,68530.0,68529.0,0.0098957]
[1730611881309,1.0686001,68530.0,68529.0,0.0098957]
[1730611881518,1.06860008,68530.0,68529.0,0.0098957]
[1730611881724,1.05492776,68530.0,68529.0,0.0098957]
[1730611881938,1.06860008,68530.0,68529.0,0.0098957]
[1730611883989,1.21442582,68530.0,68529.0,0.0098957]
[1730611884613,1.06860008,68530.0,68529.0,0.0098957]
[1730611885059,1.00742609,68530.0,68529.0,0.0098957]
[1730611885261,1.02109737,68530.0,68529.0,0.0098957]
[1730611888651,1.31909057,68530.0,68529.0,0.0098957]
[1730611888873,0.250944,68519.0,68518.0,0.000825]
[1730611889099,0.145976,68504.0,68503.0,0.21902447]
[1730611889297,0.150979,68503.0,68502.0,9e-05]
[1730611889652,0.9209401,68503.0,68502.0,9e-05]
[1730611889832,0.83565465,68503.0,68502.0,9e-05]
[1730611890041,0.77014306,68503.0,68502.0,9e-05]
[1730611890451,0.77614306,68503.0,68502.0,9e-05]
[1730611890782,0.77014306,68503.0,68502.0,9e-05]
[1730611891030,0.78414306,68503.0,68502.0,9e-05]
[1730611891687,0.9299688,68503.0,68502.0,9e-05]
[1730611891913,0.89442378,68503.0,68502.0,9e-05]
[1730611892174,0.94386181,68503.0,68502.0,9e-05]
[1730611892366,1.52093569,68503.0,68502.0,9e-05]
[1730611892576,1.30191122,68503.0,68502.0,9e-05]
[1730611893000,1.45455923,68503.0,68502.0,9e-05]
[1730611893516,1.27391122,68503.0,68502.0,9e-05]
[1730611893728,0.90844122,68503.0,68502.0,9e-05]
[1730611893956,0.8648474,68503.0,68502.0,9e-05]
[1730611894806,0.71905036,68503.0,68502.0,9e-05]
[1730611896319,0.8648474,68503.0,68502.0,9e-05]
[1730611896535,1.01067314,68503.0,68502.0,9e-05]
[1730611897175,1.09464218,68503.0,68502.0,9e-05]
[1730611897420,1.22014218,68503.0,68502.0,9e-05]
[1730611898971,1.18472082,68503.0,68502.0,9e-05]
[1730611899195,1.22007632,68503.0,68502.0,0.000909]
[1730611899418,1.32007632,68503.0,68502.0,0.000909]
[1730611900269,1.36362855,68503.0,68502.0,0.000909]
[1730611900921,1.30607632,68503.0,68502.0,0.000909]
[1730611901429,1.34957595,68503.0,68502.0,0.000909]
[1730611902042,1.37604536,68503.0,68502.0,0.000909]
[1730611902244,1.39004536,68503.0,68502.0,0.000909]
[1730611902475,1.36852199,68503.0,68502.0,0.000909]
[1730611902703,1.44748928,68503.0,68502.0,0.000909]
[1730611902918,1.3900049,68503.0,68502.0,0.000909]
[1730611903126,1.30903586,68503.0,68502.0,0.000909]
[1730611903563,1.32303586,68503.0,68502.0,0.000909]
[1730611904040,1.32503586,68503.0,68502.0,0.000909]
[1730611904461,1.28972082,68503.0,68502.0,0.000909]
[1730611904681,1.28772082,68503.0,68502.0,0.000909]
[1730611905548,1.30129991,68503.0,68502.0,0.000909]
[1730611905751,1.32502645,68503.0,68502.0,0.000909]
[1730611905971,1.28972082,68503.0,68502.0,0.000909]
[1730611906191,0.93442604,68503.0,68502.0,0.000909]
[1730611906889,0.92942604,68503.0,68502.0,0.000909]
[1730611907123,0.81542604,68503.0,68502.0,0.000909]
[1730611907341,0.80142604,68503.0,68502.0,0.000909]
[1730611907840,0.85073584,68503.0,68502.0,0.000909]
[1730611908064,0.83673584,68503.0,68502.0,0.000909]
[1730611908294,1.01677459,68503.0,68502.0,0.000909]
[1730611908517,1.05340908,68503.0,68502.0,0.000909]
[1730611908953,1.03941756,68503.0,68502.0,0.000909]
[1730611909248,1.05341756,68503.0,68502.0,0.000909]
[1730611909471,1.03077976,68503.0,68502.0,0.000909]
[1730611909960,1.04477976,68503.0,68502.0,0.000909]
[1730611911074,1.06741756,68503.0,68502.0,0.000909]
[1730611911304,1.04477976,68503.0,68502.0,0.000909]
[1730611912486,1.04481116,68503.0,68502.0,0.000909]
[1730611913364,1.1287802,68503.0,68502.0,0.000909]
[1730611913574,1.2595802,68503.0,68502.0,0.000909]
[1730611914678,1.3645802,68503.0,68502.0,0.000909]
[1730611915849,1.32923383,68503.0,68502.0,0.000909]
[1730611916069,1.35100648,68503.0,68502.0,0.000909]
[1730611916296,1.21863539,68503.0,68498.0,0.000825]
[1730611916507,0.32995604,68499.0,68498.0,0.000825]
[1730611916716,0.99901099,68499.0,68498.0,0.000825]
[1730611916961,1.02078364,68499.0,68498.0,0.000825]
[1730611918053,1.03078364,68499.0,68498.0,0.000825]
[1730611918278,1.17660938,68499.0,68498.0,0.000825]
[1730611918697,1.17860938,68499.0,68498.0,0.000825]
[1730611919397,1.16500147,68499.0,68498.0,0.000825]
[1730611919619,1.18569053,68499.0,68498.0,0.000825]
[1730611920509,1.18769053,68499.0,68498.0,0.000825]
[1730611922039,1.18569053,68499.0,68498.0,0.000825]
[1730611922687,1.18569267,68499.0,68498.0,0.000825]
[1730611926020,1.18569105,68499.0,68498.0,0.000825]
[1730611928253,1.18769105,68499.0,68498.0,0.000825]
[1730611928510,1.18569105,68499.0,68498.0,0.000825]
[1730611930497,1.22914449,68499.0,68498.0,0.000825]
[1730611931377,1.22914449,68499.0,68494.0,0.0090707]
[1730611931378,0.22996504,68495.0,68494.0,0.0090707]
[1730611931593,0.92087431,68495.0,68494.0,0.0090707]
[1730611932470,0.96690661,68495.0,68494.0,0.0090707]
[1730611932704,0.97190661,68495.0,68494.0,0.0090707]
[1730611933598,0.97790661,68495.0,68494.0,0.0090707]
[1730611934280,1.17161877,68495.0,68494.0,0.0090707]
[1730611936301,1.04900581,68495.0,68494.0,0.0090707]
[1730611936576,1.08447691,68495.0,68494.0,0.0090707]
[1730611937617,1.08469847,68495.0,68494.0,0.0090707]
[1730611938508,1.19381964,68495.0,68494.0,0.0090707]
[1730611938712,1.33964538,68495.0,68494.0,0.0090707]
[1730611939376,1.30417428,68495.0,68494.0,0.0090707]
[1730611939598,1.33965502,68495.0,68494.0,0.0090707]
[1730611940514,1.33366187,68495.0,68494.0,0.0090707]
[1730611940743,1.34766187,68495.0,68494.0,0.0090707]
[1730611940959,1.32866187,68495.0,68494.0,0.0090707]
[1730611941380,1.34766187,68495.0,68494.0,0.0090707]
[1730611941829,1.34266187,68495.0,68494.0,0.0090707]
[1730611942268,1.32650974,68495.0,68494.0,0.0090707]
[1730611942514,1.55140974,68495.0,68494.0,0.0090707]
[1730611942747,1.55340974,68495.0,68494.0,0.0090707]
[1730611942990,1.68435515,68495.0,68494.0,0.0090707]
[1730611943445,1.68235515,68495.0,68494.0,0.0090707]
[1730611943668,1.53740974,68495.0,68494.0,0.0090707]
[1730611943898,1.53940974,68495.0,68494.0,0.0090707]
[1730611944177,1.67037272,68495.0,68494.0,0.0090707]
[1730611944426,1.55342731,68495.0,68494.0,0.0090707]
[1730611944851,1.53942731,68495.0,68494.0,0.0090707]
[1730611945730,1.68437272,68495.0,68494.0,0.0090707]
[1730611945941,1.68437272,68495.0,68494.0,0.0098897]
[1730611946389,0.22499904,68479.0,68478.0,0.046126]
[1730611946603,0.69118516,68479.0,68478.0,0.046126]
[1730611947466,0.69518516,68479.0,68478.0,0.046126]
[1730611947945,0.69518231,68479.0,68478.0,0.046126]
[1730611948389,0.77098231,68479.0,68478.0,0.046126]
[1730611948642,0.62495231,68479.0,68478.0,0.046126]
[1730611948866,0.62495231,68479.0,68478.0,0.34632704]
[1730611949073,0.62495231,68479.0,68478.0,0.27240647]
[1730611949715,0.62095399,68479.0,68478.0,0.27240647]
[1730611950154,0.61795399,68479.0,68478.0,0.27240647]
[1730611951468,0.61795399,68479.0,68478.0,0.35137551]
[1730611951725,0.61795399,68479.0,68478.0,0.50717255]
[1730611951938,0.61795399,68479.0,68478.0,0.51434799]
[1730611952370,0.59610538,68479.0,68478.0,0.51434799]
[1730611953412,0.59610538,68479.0,68478.0,0.51634799]
[1730611954070,0.59610538,68479.0,68478.0,0.51434799]
[1730611954289,0.59610538,68479.0,68478.0,0.51634799]
[1730611954543,0.59609774,68479.0,68478.0,0.51634276]
[1730611957735,0.58245,68479.0,68478.0,0.51634276]
[1730611957945,0.59609098,68479.0,68478.0,0.51634276]
[1730611959544,0.58245,68479.0,68478.0,0.51634276]
[1730611959768,0.58245,68479.0,68478.0,0.61834276]
[1730611960010,0.58245,68479.0,68478.0,0.84548731]
[1730611960236,0.58245,68479.0,68478.0,0.86736519]
[1730611960463,0.37625,68479.0,68478.0,0.7265318]
[1730611960688,0.24875,68479.0,68478.0,0.6338318]
[1730611960957,0.24875,68479.0,68478.0,0.62047678]
[1730611961186,0.24875,68479.0,68478.0,0.61847678]
[1730611961403,0.24875,68479.0,68478.0,0.55286276]
[1730611961885,0.24875,68479.0,68478.0,0.62466159]
[1730611962126,0.16653593,68479.0,68478.0,0.98673168]
[1730611962369,0.21902447,68488.0,68487.0,0.287233]
[1730611962611,0.21902447,68488.0,68487.0,0.59591174]
[1730611962826,0.21902447,68488.0,68487.0,0.6030729]
[1730611963061,0.21902447,68496.0,68495.0,0.155996]
[1730611963282,0.23265254,68496.0,68495.0,0.38076208]
[1730611963766,0.0205,68496.0,68495.0,0.48569736]
[1730611964014,0.0205,68496.0,68495.0,0.5646664]
[1730611964451,0.0205,68496.0,68495.0,0.5666664]
[1730611965529,0.0205,68496.0,68495.0,0.5686664]
[1730611965740,0.0205,68496.0,68495.0,0.5666664]
[1730611966019,0.0205,68496.0,68495.0,0.5706664]
[1730611966261,0.0205,68496.0,68495.0,0.5686664]
[1730611966484,0.0205,68496.0,68495.0,0.5666664]
[1730611966706,0.0205,68496.0,68495.0,0.5686664]
[1730611966917,0.0205,68496.0,68495.0,0.5706664]
[1730611969260,0.0205,68496.0,68495.0,0.57430422]
[1730611969870,0.022138,68496.0,68495.0,0.57430422]
[1730611970099,0.21902447,68514.0,68496.0,0.391987]
[1730611970314,0.21902447,68514.0,68501.0,0.52411012]
[1730611970522,0.21902447,68514.0,68501.0,0.59093812]
[1730611970731,0.21902447,68514.0,68501.0,0.59581946]
[1730611971431,0.21902447,68514.0,68501.0,0.6747885]
[1730611971659,0.21902447,68514.0,68501.0,0.59581946]
[1730611972951,0.21902447,68514.0,68501.0,0.59781946]
[1730611973162,0.21902447,68514.0,68501.0,0.59981946]
[1730611973880,0.21902447,68514.0,68501.0,0.6825026]
[1730611975823,0.21902447,68514.0,68501.0,0.55731065]
[1730611976036,0.09667327,68513.0,68501.0,0.55531065]
[1730611976248,0.01357327,68512.0,68501.0,0.55531065]
[1730611976471,0.01357327,68511.0,68501.0,0.55531065]
[1730611976701,0.0831,68513.0,68501.0,0.55531065]
[1730611976911,0.01357386,68512.0,68501.0,0.55331065]
[1730611977128,0.01357386,68511.0,68501.0,0.55531065]
[1730611977365,0.0831,68513.0,68501.0,0.55331065]
[1730611977803,0.0831,68513.0,68501.0,0.55531065]
[1730611978030,0.0831,68513.0,68501.0,0.55331065]
[1730611978951,0.0831,68513.0,68501.0,0.55531065]
[1730611979657,0.0831,68513.0,68501.0,0.55731065]
[1730611980117,0.0831,68513.0,68501.0,0.55331065]
[1730611980539,0.0831,68513.0,68501.0,0.55731065]
[1730611980748,0.0831,68513.0,68501.0,0.55531065]
[1730611981161,0.0831,68513.0,68501.0,0.55731065]
[1730611981387,0.02174005,68512.0,68501.0,0.55731065]
[1730611981618,0.0831,68513.0,68501.0,0.55731065]
[1730611981825,0.0831,68513.0,68501.0,0.55531065]
[1730611982042,0.0831,68513.0,68501.0,0.55731065]
[1730611982247,0.02174045,68512.0,68501.0,0.55731065]
[1730611982462,0.0831,68513.0,68501.0,0.55731065]
[1730611982463,0.02174045,68511.0,68501.0,0.55731065]
[1730611982669,0.0831,68513.0,68501.0,0.55731065]
[1730611982891,0.02174443,68512.0,68501.0,0.55731065]
[1730611983093,0.02174443,68511.0,68501.0,0.55731065]
[1730611983301,0.0831,68513.0,68501.0,0.55731065]
[1730611983513,0.02174776,68512.0,68501.0,0.67762126]
[1730611983727,0.26782447,68514.0,68501.0,0.68475487]
[1730611983943,0.21902447,68514.0,68513.0,0.155957]
[1730611984192,0.25436622,68514.0,68513.0,0.30175404]
[1730611984407,0.01359298,68514.0,68513.0,0.40175404]
[1730611984616,0.01359298,68514.0,68513.0,0.40375404]
[1730611985051,0.30212447,68521.0,68517.0,0.255949]
[1730611985274,0.01523434,68518.0,68517.0,0.52497511]
[1730611985486,0.01523434,68518.0,68517.0,0.52205665]
[1730611985696,0.01523434,68518.0,68517.0,0.52405665]
[1730611986583,0.01623434,68518.0,68517.0,0.52405665]
[1730611988327,0.01623434,68518.0,68517.0,0.52605665]
[1730611988749,0.001638,68518.0,68517.0,0.52605665]
[1730611988997,0.01524378,68518.0,68517.0,0.53319715]
[1730611989200,0.01524378,68518.0,68517.0,0.53519715]
[1730611989846,0.01524378,68518.0,68517.0,0.53319715]
[1730611990267,0.01524378,68518.0,68517.0,0.53686563]
[1730611990486,0.11682982,68518.0,68517.0,0.52972513]
[1730611991360,0.12595718,68518.0,68517.0,0.52972513]
[1730611992414,0.04615718,68518.0,68517.0,0.52972513]
[1730611992898,0.04615718,68518.0,68517.0,0.53172513]
[1730611993120,0.04615718,68518.0,68517.0,0.52972513]
[1730611994226,0.04620641,68518.0,68517.0,0.52972513]
[1730611994433,0.04620641,68518.0,68517.0,0.53688]
[1730611994898,0.04620641,68518.0,68517.0,0.52972513]
[1730611995510,0.04620641,68518.0,68517.0,0.53688015]
[1730611995927,0.04620641,68518.0,68517.0,0.56610015]
[1730611999407,0.04620641,68518.0,68517.0,0.56810015]
[1730611999857,0.04620641,68518.0,68517.0,0.56610015]
[1730612000512,0.03259197,68518.0,68517.0,0.56610471]
[1730612000721,0.04623371,68518.0,68517.0,0.56610471]
[1730612002860,0.04623363,68518.0,68517.0,0.56610471]
[1730612004605,0.04623451,68518.0,68517.0,0.56610482]
[1730612004815,0.001638,68518.0,68517.0,0.56610482]
[1730612005034,0.0462346,68518.0,68517.0,0.57326451]
[1730612005242,0.03804936,68518.0,68517.0,0.56610482]
[1730612005473,0.02892219,68518.0,68517.0,0.56610482]
[1730612005673,0.03710746,68518.0,68517.0,0.56610482]
[1730612006468,0.02346767,68518.0,68517.0,0.56610482]
[1730612006874,0.03711121,68518.0,68517.0,0.56610482]
[1730612008574,0.08391121,68518.0,68517.0,0.56610482]
[1730612009017,0.08391121,68518.0,68517.0,0.566108]
[1730612010740,0.06208154,68518.0,68517.0,0.566108]
[1730612011966,0.06208154,68518.0,68517.0,0.52473407]
[1730612013299,0.06209434,68518.0,68517.0,0.52474002]
[1730612014438,0.06209434,68518.0,68517.0,0.56825677]
[1730612015370,0.06209434,68518.0,68517.0,0.52474002]
[1730612017288,0.048438,68518.0,68517.0,0.5247462]
[1730612017523,0.06210604,68518.0,68517.0,0.5247462]
[1730612017751,0.06210604,68518.0,68517.0,0.52474616]
[1730612019140,0.06210604,68518.0,68517.0,0.52674616]
[1730612021237,0.06210604,68518.0,68517.0,0.59031589]
[1730612021440,0.06210604,68518.0,68517.0,0.52474616]
[1730612022304,0.06210604,68518.0,68517.0,0.59033318]
[1730612023185,0.06210604,68518.0,68517.0,0.75176209]
[1730612023421,0.13910604,68518.0,68517.0,0.75176209]
[1730612024272,0.13910604,68518.0,68517.0,0.68617507]
[1730612024743,0.125438,68518.0,68517.0,0.67900011]
[1730612024958,0.13910868,68518.0,68517.0,0.6861764]
[1730612026664,0.13910868,68518.0,68517.0,0.67900011]
[1730612026882,0.13910868,68518.0,68517.0,0.68617667]
[1730612027755,0.13910868,68518.0,68517.0,0.77362603]
[1730612028595,0.13910868,68518.0,68517.0,0.68617667]
[1730612029459,0.13910868,68518.0,68517.0,0.79548837]
[1730612030516,0.13910868,68518.0,68517.0,0.68617667]
[1730612032164,0.13910868,68518.0,68517.0,0.52474776]
[1730612032380,0.13910868,68518.0,68517.0,0.67924749]
[1730612032618,0.13910868,68518.0,68517.0,0.68642419]
[1730612033486,0.13910944,68518.0,68517.0,0.68642419]
[1730612033705,0.13910944,68518.0,68517.0,0.68842419]
[1730612033953,0.01530944,68518.0,68517.0,0.60948751]
[1730612034183,0.01530944,68518.0,68517.0,0.65511869]
[1730612034416,0.001638,68518.0,68517.0,0.65511869]
[1730612035571,0.001638,68518.0,68517.0,0.65311869]
[1730612035993,0.001638,68518.0,68517.0,0.62389869]
[1730612036206,0.001638,68518.0,68517.0,0.62589869]
[1730612039100,0.001638,68518.0,68517.0,0.63737724]
[1730612039235,0.001638,68518.0,68517.0,0.63737415]
[1730612041111,0.001638,68518.0,68517.0,0.63737301]
[1730612042595,0.001638,68518.0,68517.0,0.61872199]
[1730612042806,0.001638,68518.0,68517.0,0.63737146]
[1730612043503,0.001638,68518.0,68517.0,0.63537146]
[1730612043790,0.047038,68518.0,68517.0,0.63537146]
[1730612044230,0.047038,68518.0,68517.0,0.62389456]
[1730612045134,0.047038,68518.0,68517.0,0.62589456]
[1730612045346,0.047038,68518.0,68517.0,0.61872199]
[1730612045571,0.047038,68518.0,68517.0,0.6258941]
[1730612046934,0.047038,68518.0,68517.0,0.6238941]
[1730612049012,0.047038,68518.0,68517.0,0.62389365]
[1730612049267,0.128038,68518.0,68517.0,0.62389365]
[1730612049498,0.128038,68518.0,68517.0,0.57826247]
[1730612049712,0.128038,68518.0,68517.0,0.68770956]
[1730612050270,0.14170602,68518.0,68517.0,0.68770956]
[1730612052912,0.14170569,68518.0,68517.0,0.68770949]
[1730612056655,0.14170569,68518.0,68517.0,0.66582132]
[1730612057352,0.14170569,68518.0,68517.0,0.66082132]
[1730612058300,0.14170569,68518.0,68517.0,0.56609081]
[1730612058555,0.1635774,68518.0,68517.0,0.37721665]
[1730612058776,0.1635774,68518.0,68517.0,0.149949]
[1730612060220,0.16356826,68518.0,68514.0,0.00717092]
[1730612060454,0.16356826,68518.0,68509.0,0.08755547]
[1730612060455,0.0802,68516.0,68509.0,0.296931]
[1730612060680,0.001638,68518.0,68511.0,0.145961]
[1730612060681,0.1301,68514.0,68511.0,0.145961]
[1730612060915,0.03553026,68513.0,68511.0,0.145961]
[1730612061166,0.16563026,68512.0,68511.0,0.145961]
[1730612061642,0.145949,68517.0,68512.0,0.145959]
[1730612062376,0.04137296,68518.0,68511.0,0.002]
[1730612062600,0.04137296,68518.0,68506.0,0.145971]
[1730612062601,0.291913,68514.0,68506.0,0.145971]
[1730612062820,0.145959,68512.0,68511.0,0.002]
[1730612063303,0.145959,68512.0,68507.0,0.14597]
[1730612063751,0.145959,68512.0,68506.0,0.005]
[1730612063976,0.145959,68512.0,68508.0,0.145968]
[1730612064203,0.14596,68512.0,68507.0,0.145969]
[1730612064665,0.437868,68514.0,68511.0,0.001]
[1730612064890,0.437868,68514.0,68508.0,0.145967]
[1730612065114,0.145958,68513.0,68511.0,0.002]
[1730612065338,0.1301,68512.0,68511.0,0.002]
[1730612065644,0.145958,68513.0,68508.0,0.145967]
[1730612065869,0.0499,68511.0,68508.0,0.145967]
[1730612066097,0.0499,68509.0,68508.0,0.145967]
[1730612066333,0.1301,68509.0,68508.0,0.145967]
[1730612068424,0.1301,68509.0,68504.0,0.005]
[1730612068668,0.1301,68508.0,68507.0,0.14597]
[1730612068902,0.1301,68510.0,68504.0,0.145975]
[1730612069150,0.1301,68510.0,68502.0,0.1468]